bitfinex/quotes_ETHUSD_20250822
["timestamp","ask_amount","ask_price","bid_price","bid_amount"]
[1755885544852,5.43925931,4807.4,4807.3,0.19496189]
[1755885545035,5.43925931,4807.4,4807.3,0.001]
[1755885545252,5.43925931,4807.4,4807.3,0.19494778]
[1755885545555,0.48471907,4808.2,4807.3,0.19494778]
[1755885545760,0.48471907,4808.2,4807.3,0.001]
[1755885545761,0.3989,4807.4,4807.3,0.001]
[1755885545940,4.7609,4807.4,4807.3,0.19480577]
[1755885546118,5.2011,4807.4,4807.3,0.19480577]
[1755885546318,1.4991,4807.4,4807.3,0.19480577]
[1755885546555,5.2011,4807.4,4807.3,0.19480577]
[1755885546760,5.35937391,4807.4,4807.3,0.19480577]
[1755885547350,1.65737391,4807.4,4807.3,0.19480577]
[1755885547549,4.62327391,4807.4,4807.3,0.19480577]
[1755885548030,4.91817391,4807.4,4807.3,0.19480577]
[1755885548930,4.62327391,4807.4,4807.3,0.19480577]
[1755885549123,4.48055423,4807.4,4807.3,0.19480577]
[1755885549432,5.21565423,4807.4,4807.3,0.19480577]
[1755885549654,4.465,4807.4,4807.3,0.19480577]
[1755885549972,0.764,4807.4,4807.3,0.19480577]
[1755885550259,4.465,4807.4,4807.3,0.19480577]
[1755885550768,4.7599,4807.4,4807.3,0.19480577]
[1755885551578,0.764,4807.4,4807.3,0.48080577]
[1755885551755,0.104,4807.4,4807.3,0.48080577]
[1755885551941,3.804,4807.4,4807.3,0.48080577]
[1755885552144,0.104,4807.4,4807.3,0.48080577]
[1755885552469,0.766,4807.4,4807.3,0.19480577]
[1755885552670,4.466,4807.4,4807.3,0.19480577]
[1755885553274,4.466,4807.4,4807.3,0.19516181]
[1755885554486,4.7609,4807.4,4807.3,0.19516181]
[1755885554684,5.2011,4807.4,4807.3,0.19516181]
[1755885555795,1.5011,4807.4,4807.3,0.19516181]
[1755885555994,4.77645423,4807.4,4807.3,0.19516181]
[1755885556199,4.7609,4807.4,4807.3,0.19516181]
[1755885556384,4.7599,4807.4,4807.3,0.19516181]
[1755885556590,5.2001,4807.4,4807.3,0.19516181]
[1755885557481,5.2001,4807.4,4807.3,0.001]
[1755885558301,5.2001,4807.4,4807.3,0.1951038]
[1755885558609,1.5011,4807.4,4807.3,0.1951038]
[1755885558790,8.21565423,4807.4,4807.3,0.001]
[1755885558971,8.2001,4807.4,4807.3,0.001]
[1755885559473,8.32430179,4807.4,4807.3,0.001]
[1755885559674,8.2001,4807.4,4807.3,0.001]
[1755885559892,4.5011,4807.4,4807.3,0.001]
[1755885560096,8.21465423,4807.4,4807.3,0.001]
[1755885560294,8.1991,4807.4,4807.3,0.001]
[1755885561799,4.5011,4807.4,4807.3,0.001]
[1755885562019,8.21465423,4807.4,4807.3,0.001]
[1755885562203,8.1991,4807.4,4807.3,0.001]
[1755885562503,8.282436,4807.4,4807.3,0.001]
[1755885563274,4.584436,4807.4,4807.3,0.001]
[1755885563601,8.29799023,4807.4,4807.3,0.001]
[1755885563804,8.282436,4807.4,4807.3,0.001]
[1755885564305,8.178436,4807.4,4807.3,0.001]
[1755885564521,9.38979456,4807.4,4807.3,0.001]
[1755885564708,9.94910172,4807.4,4807.3,0.001]
[1755885565013,9.38879456,4807.4,4807.3,0.001]
[1755885565183,9.83702083,4807.4,4807.3,0.001]
[1755885565504,9.83699992,4807.4,4807.3,0.001]
[1755885565912,9.72026137,4807.4,4807.3,0.001]
[1755885566613,5.58306137,4807.4,4807.3,0.001]
[1755885566814,9.08546227,4807.4,4807.3,0.001]
[1755885567185,4.940236,4807.4,4807.3,0.001]
[1755885567419,8.637236,4807.4,4807.3,0.001]
[1755885567709,9.071636,4807.4,4807.3,0.001]
[1755885567911,0.985336,4807.4,4807.3,0.001]
[1755885568114,0.91755423,4807.4,4807.3,0.2937]
[1755885568335,3.71455423,4807.4,4807.3,0.2937]
[1755885568491,3.699,4807.4,4807.3,0.48835753]
[1755885568931,4.359,4807.4,4807.3,0.48835753]
[1755885569315,5.1097,4807.4,4807.3,0.19565753]
[1755885570210,9.0097,4807.4,4807.3,0.19565753]
[1755885570518,8.55757198,4807.4,4807.3,0.001]
[1755885572117,8.55657198,4807.4,4807.3,0.001]
[1755885573001,16.47779234,4807.4,4807.3,0.001]
[1755885573195,16.28345696,4807.4,4807.3,0.001]
[1755885573426,16.4778066,4807.4,4807.3,0.001]
[1755885573621,17.154687,4807.4,4807.3,0.001]
[1755885573809,13.458687,4807.4,4807.3,0.001]
[1755885574223,17.153687,4807.4,4807.3,0.001]
[1755885574400,16.59337984,4807.4,4807.3,0.001]
[1755885574601,13.0024198,4807.4,4807.3,0.001]
[1755885574895,16.6974198,4807.4,4807.3,0.001]
[1755885575404,8.27730658,4807.4,4807.3,0.001]
[1755885575826,8.93730658,4807.4,4807.3,0.001]
[1755885576027,9.83730658,4807.4,4807.3,0.001]
[1755885576432,8.93730658,4807.4,4807.3,0.001]
[1755885576807,9.05378092,4807.4,4807.3,0.001]
[1755885577540,9.05335465,4807.4,4807.3,0.001]
[1755885578523,10.98416084,4807.4,4807.3,0.001]
[1755885578940,11.544468,4807.4,4807.3,0.001]
[1755885579240,10.98416084,4807.4,4807.3,0.001]
[1755885579635,11.544468,4807.4,4807.3,0.001]
[1755885579841,10.98416084,4807.4,4807.3,0.001]
[1755885580418,10.54876084,4807.4,4807.3,0.001]
[1755885580613,10.67272317,4807.4,4807.3,0.001]
[1755885580814,10.86650809,4807.4,4807.3,0.001]
[1755885581550,10.98280658,4807.4,4807.3,0.001]
[1755885581933,7.84911374,4807.4,4807.3,0.001]
[1755885582119,7.28880658,4807.4,4807.3,0.001]
[1755885582446,10.98280658,4807.4,4807.3,0.001]
[1755885582654,11.54311374,4807.4,4807.3,0.001]
[1755885582816,3.66,4807.3,4807.1,0.001]
[1755885583150,3.66,4807.1,4805.7,0.02]
[1755885583323,12.178617,4806.5,4805.7,0.02]
[1755885583532,15.14950363,4806.5,4805.7,0.02]
[1755885583724,15.58479231,4806.5,4805.7,0.02]
[1755885583926,19.735391,4806.5,4805.7,0.02]
[1755885584147,20.051691,4806.5,4805.7,0.02]
[1755885584743,19.735391,4806.5,4805.7,0.02]
[1755885584934,16.042391,4806.5,4805.7,0.02]
[1755885585119,19.735391,4806.5,4805.7,0.02]
[1755885585844,16.042391,4806.5,4805.7,0.02]
[1755885586044,19.735391,4806.5,4805.7,0.02]
[1755885586423,20.051691,4806.5,4805.7,0.02]
[1755885586617,20.951691,4806.5,4805.7,0.02]
[1755885586823,20.51891717,4806.5,4805.7,0.02]
[1755885587551,20.51791717,4806.5,4805.7,0.02]
[1755885587925,20.83421717,4806.5,4805.7,0.02]
[1755885588322,21.28651717,4806.5,4805.7,0.02]
[1755885589831,17.14167693,4806.5,4805.7,0.02]
[1755885590031,17.59397693,4806.5,4805.7,0.02]
[1755885590353,6.18183695,4806.5,4806.4,0.2976]
[1755885590557,5.05945094,4806.5,4806.4,0.2976]
[1755885590766,4.97608294,4806.5,4806.4,0.2976]
[1755885590977,7.76808294,4806.5,4806.4,0.7655]
[1755885591279,7.10708294,4806.5,4806.4,0.7655]
[1755885591563,3.41608294,4806.5,4806.4,0.7655]
[1755885591762,7.76708294,4806.5,4806.4,0.7655]
[1755885592064,4.07608294,4806.5,4806.4,0.7655]
[1755885592263,7.76708294,4806.5,4806.4,0.7655]
[1755885592467,7.76708294,4806.5,4806.4,0.2976]
[1755885592832,7.87108294,4806.5,4806.4,0.2976]
[1755885593034,7.87108294,4806.5,4806.4,0.7655]
[1755885593271,3.52008294,4806.5,4806.4,0.2976]
[1755885593468,7.21108294,4806.5,4806.4,0.7655]
[1755885593837,7.87108294,4806.5,4806.4,0.7655]
[1755885594547,7.87008294,4806.5,4806.4,0.7655]
[1755885595645,1.78808294,4806.5,4806.4,0.7655]
[1755885596259,5.47808294,4806.5,4806.4,0.7655]
[1755885596744,6.13808294,4806.5,4806.4,0.2976]
[1755885596951,6.13808294,4806.5,4806.4,0.001]
[1755885598158,7.86908294,4806.5,4806.4,0.001]
[1755885599146,8.16208294,4806.5,4806.4,0.001]
[1755885599348,11.61438294,4806.5,4806.4,0.001]
[1755885600878,8.37122727,4806.5,4806.4,0.001]
[1755885601078,12.05922727,4806.5,4806.4,0.001]
[1755885601284,4.52195631,4806.5,4806.4,0.2976]
[1755885601483,7.20808294,4806.5,4806.4,0.7655]
[1755885602380,1.68408294,4806.5,4806.4,0.7655]
[1755885602556,1.78808294,4806.5,4806.4,0.7655]
[1755885602955,1.68408294,4806.5,4806.4,0.7655]
[1755885604889,0.106,4806.7,4806.4,0.7655]
[1755885605095,0.106,4806.7,4806.5,0.4679]
[1755885605258,0.106,4806.7,4806.6,0.2966]
[1755885605459,0.106,4806.7,4806.6,0.7645]
[1755885606713,0.002,4807.2,4806.6,15.217666]
[1755885606922,0.002,4807.2,4806.7,0.4679]
[1755885607078,0.002,4807.2,4807.1,0.2966]
[1755885607277,0.002,4807.2,4807.1,0.31740256]
[1755885607482,0.002,4807.2,4807.1,0.78530256]
[1755885607904,0.106,4807.4,4807.1,0.78530256]
[1755885607905,0.03368,4807.4,4807.1,0.78530256]
[1755885608104,0.03368,4807.4,4807.2,0.4679]
[1755885608296,0.03368,4807.4,4807.3,0.31740169]
[1755885608700,0.03368,4807.4,4807.3,0.78530169]
[1755885609316,0.104,4807.5,4807.3,0.73530169]
[1755885609481,0.104,4807.5,4807.4,0.4679]
[1755885609686,0.104,4807.5,4807.4,0.7645]
[1755885610722,0.106,4807.7,4807.4,0.7645]
[1755885610928,0.106,4807.7,4807.5,0.01564578]
[1755885611116,0.106,4807.7,4807.6,0.2966]
[1755885611316,0.002,4807.7,4807.6,0.7645]
[1755885611536,0.66,4807.6,4806.4,1.57275015]
[1755885611727,0.02600104,4807.5,4806.4,0.4689]
[1755885611897,0.002,4807.7,4807.4,0.2966]
[1755885612093,0.02600104,4807.5,4806.4,0.001]
[1755885612293,0.4523,4807.4,4806.4,0.001]
[1755885612827,0.01035488,4807.3,4806.4,0.001]
[1755885613202,0.291,4806.5,4806.4,0.001]
[1755885613527,0.7417,4806.5,4806.4,0.001]
[1755885614217,0.01035488,4806.5,4806.4,0.001]
[1755885614604,0.96335488,4806.5,4806.4,0.001]
[1755885614805,0.66,4806.5,4806.4,0.001]
[1755885615220,0.66,4806.5,4806.4,0.2976]
[1755885615730,1.4017,4806.5,4806.4,0.001]
[1755885615927,0.66,4806.5,4806.4,0.001]
[1755885616128,5.0847,4806.5,4806.4,0.001]
[1755885616708,5.2388015,4806.5,4806.4,0.001]
[1755885618217,8.2388015,4806.5,4806.4,0.001]
[1755885620741,8.3221695,4806.5,4806.4,0.001]
[1755885621456,4.6391695,4806.5,4806.4,0.001]
[1755885621661,4.5778015,4806.5,4806.4,0.001]
[1755885621828,5.24815638,4806.5,4806.4,0.001]
[1755885622153,5.2378015,4806.5,4806.4,0.001]
[1755885622338,0.104,4806.5,4806.4,0.001]
[1755885622525,3.786,4806.5,4806.4,0.001]
[1755885622926,4.446,4806.5,4806.4,0.001]
[1755885623527,1.0708,4806.5,4806.4,0.001]
[1755885623719,4.76315488,4806.5,4806.4,0.001]
[1755885623915,4.7528,4806.5,4806.4,0.001]
[1755885624115,4.446,4806.5,4806.4,0.001]
[1755885624851,4.45535488,4806.5,4806.4,0.001]
[1755885625845,0.11435488,4806.5,4806.4,0.3047]
[1755885626058,3.785,4806.5,4806.4,0.3047]
[1755885626482,0.104,4806.5,4806.4,0.3047]
[1755885626643,0.104,4806.5,4806.4,0.7621]
[1755885626843,0.104,4806.5,4806.4,0.3047]
[1755885627039,0.104,4806.5,4806.4,0.7621]
[1755885627234,0.104,4806.5,4806.4,0.3047]
[1755885627439,0.104,4806.5,4806.4,0.7621]
[1755885628248,0.104,4806.5,4806.4,0.3047]
[1755885628660,0.764,4806.5,4806.4,0.3047]
[1755885628838,0.764,4806.5,4806.4,0.7621]
[1755885629039,0.764,4806.5,4806.4,0.001]
[1755885629246,1.5001,4806.5,4806.4,0.001]
[1755885629746,1.5001,4806.5,4805.9,0.001]
[1755885629747,0.66,4806.4,4805.9,0.001]
[1755885629973,0.9668,4806.0,4805.9,0.001]
[1755885630162,1.08115488,4806.0,4805.9,0.001]
[1755885630476,1.51045488,4806.0,4805.9,0.001]
[1755885630691,0.66,4805.9,4803.8,0.02]
[1755885630838,0.9668,4804.9,4803.8,0.02]
[1755885631058,7.7508,4804.9,4803.8,0.02]
[1755885631262,8.1801,4804.9,4803.8,0.02]
[1755885631660,1.09965488,4804.8,4803.8,0.02]
[1755885631861,0.9668,4803.9,4803.8,0.02]
[1755885632113,6.4818,4803.9,4803.8,0.02]
[1755885632465,6.9111,4803.9,4803.8,0.02]
[1755885633262,10.06523801,4803.9,4803.8,0.02]
[1755885633571,26.6186729,4803.9,4803.8,0.02]
[1755885633968,0.104,4803.9,4803.8,0.3237]
[1755885634295,7.37624757,4807.4,4803.8,0.3237]
[1755885634296,0.104,4804.2,4803.8,1.23571701]
[1755885634494,0.01035488,4804.1,4803.8,0.3237]
[1755885634698,0.104,4803.9,4803.8,0.3237]
[1755885635008,4.443,4803.9,4803.8,0.02]
[1755885636237,4.443,4803.9,4803.8,0.021]
[1755885636697,5.1791,4803.9,4803.8,0.021]
[1755885637235,4.7498,4803.9,4803.8,0.021]
[1755885637541,0.764,4803.9,4803.8,0.021]
[1755885637707,0.764,4803.9,4803.8,0.51800276]
[1755885637907,0.104,4803.9,4803.8,0.51800276]
[1755885638212,0.104,4803.9,4803.8,0.19330276]
[1755885638423,0.104,4803.9,4802.8,0.02]
[1755885638735,0.764,4802.9,4802.8,0.02]
[1755885639037,0.764,4802.9,4802.8,0.3237]
[1755885639775,0.764,4802.9,4802.8,0.6921]
[1755885639776,0.104,4802.9,4802.8,0.6921]
[1755885640939,3.68,4803.9,4802.8,0.6921]
[1755885641142,0.104,4803.1,4802.8,0.6921]
[1755885641501,0.104,4803.1,4802.9,0.3684]
[1755885641714,0.104,4803.1,4803.0,0.3037]
[1755885642096,0.104,4803.1,4803.0,0.32452032]
[1755885642298,0.104,4803.1,4803.0,0.69292032]
[1755885642829,0.104,4803.4,4803.0,0.69292032]
[1755885643245,0.104,4803.4,4803.1,0.3684]
[1755885643568,0.764,4803.4,4803.3,0.3037]
[1755885643707,0.66,4803.4,4803.3,0.3037]
[1755885643917,0.66,4803.3,4802.8,0.02]
[1755885644097,0.104,4803.0,4802.8,0.02]
[1755885644306,0.764,4803.0,4802.9,0.3037]
[1755885645432,0.104,4803.0,4802.9,0.3037]
[1755885646597,0.104,4803.0,4802.8,0.02]
[1755885646807,0.01035488,4802.9,4802.8,0.02]
[1755885647426,5.08645488,4802.9,4802.8,0.02]
[1755885647633,5.0761,4802.9,4802.8,0.02]
[1755885648862,8.0761,4802.9,4802.8,0.02]
[1755885652031,1.3961,4802.9,4802.8,0.02]
[1755885652347,3.68,4803.2,4802.8,0.02]
[1755885652552,3.68,4803.1,4802.8,0.02]
[1755885653265,0.3013,4802.9,4802.8,0.02]
[1755885653464,0.9613,4802.9,4802.8,0.02]
[1755885653841,1.403,4802.9,4802.8,0.02]
[1755885656063,5.083,4802.9,4802.8,0.02]
[1755885657263,8.083,4802.9,4802.8,0.02]
[1755885657937,8.187,4802.9,4802.8,0.02]
[1755885659460,0.66,4802.8,4802.3,0.001]
[1755885659659,0.9613,4802.4,4802.3,0.001]
[1755885659865,9.48865488,4802.4,4802.3,0.001]
[1755885660161,9.92,4802.4,4802.3,0.001]
[1755885660663,22.79343489,4802.4,4802.3,0.001]
[1755885660849,6.24,4802.4,4802.3,0.001]
[1755885661062,1.837,4802.4,4802.3,0.001]
[1755885661364,1.733,4802.4,4802.3,0.304]
[1755885661547,5.517,4802.4,4802.3,0.304]
[1755885661755,1.837,4802.4,4802.3,0.304]
[1755885661949,5.517,4802.4,4802.3,0.304]
[1755885662151,5.517,4802.4,4802.3,0.001]
[1755885662544,6.92,4802.4,4802.3,0.001]
[1755885663874,9.92,4802.4,4802.3,0.001]
[1755885664063,3.66,4802.3,4801.8,0.021]
[1755885664262,1.0653,4801.9,4801.8,0.021]
[1755885664463,1.54713105,4801.9,4801.8,0.021]
[1755885664664,1.98883105,4801.9,4801.8,0.021]
[1755885664993,3.66,4801.8,4799.8,0.02]
[1755885665190,0.9613,4800.9,4799.8,0.02]
[1755885665400,6.48965488,4800.9,4799.8,0.02]
[1755885665548,6.921,4800.9,4799.8,0.02]
[1755885665745,8.28693302,4800.9,4799.8,0.02]
[1755885665984,27.84036791,4800.9,4799.8,0.02]
[1755885666192,3.66,4800.8,4799.8,0.02]
[1755885666344,1.0653,4799.9,4799.8,0.02]
[1755885666550,4.7453,4799.9,4799.8,0.02]
[1755885666752,1.507,4799.9,4799.8,0.02]
[1755885666994,5.187,4799.9,4799.8,0.02]
[1755885667155,5.34247093,4799.9,4799.8,0.02]
[1755885668744,4.59947093,4799.9,4799.8,0.02]
[1755885668944,4.59947093,4799.9,4799.8,0.021]
[1755885669176,1.66247093,4799.9,4799.8,0.021]
[1755885669372,5.35282581,4799.9,4799.8,0.021]
[1755885669582,5.34247093,4799.9,4799.8,0.021]
[1755885669977,8.34247093,4799.9,4799.8,0.021]
[1755885670353,4.66247093,4799.9,4799.8,0.021]
[1755885670554,8.34247093,4799.9,4799.8,0.021]
[1755885670849,0.104,4799.9,4799.8,0.6924]
[1755885671163,3.784,4799.9,4799.8,0.6924]
[1755885671492,0.104,4799.9,4799.8,0.6924]
[1755885672299,3.68,4800.2,4799.8,0.6924]
[1755885672501,0.104,4799.9,4799.8,0.6924]
[1755885672708,1.30887313,4800.4,4799.8,0.324]
[1755885672996,0.104,4800.2,4799.9,0.02083376]
[1755885673176,0.104,4800.2,4800.1,0.303]
[1755885673380,0.104,4800.2,4800.1,0.6714]
[1755885674051,0.104,4800.2,4800.1,0.303]
[1755885674283,0.764,4800.2,4800.1,0.303]
[1755885674488,0.104,4800.2,4800.1,0.6714]
[1755885675762,1.30887313,4800.4,4800.1,0.6714]
[1755885675966,1.30887313,4800.4,4800.2,0.02083246]
[1755885676303,0.104,4800.5,4800.3,0.303]
[1755885676601,0.104,4800.5,4800.4,0.3684]
[1755885676810,0.104,4800.5,4800.4,0.6714]
[1755885677706,0.104,4800.5,4800.4,0.303]
[1755885678017,0.104,4800.5,4800.4,0.3019]
[1755885678200,0.764,4800.5,4800.4,0.3019]
[1755885678885,0.104,4800.5,4800.4,0.6703]
[1755885681020,0.04,4801.8,4800.4,0.6703]
[1755885681321,0.04,4801.8,4800.5,0.3684]
[1755885681494,0.05035488,4801.8,4800.5,0.3684]
[1755885681682,0.04,4801.8,4800.5,0.3684]
[1755885681882,0.104,4801.2,4800.5,0.4724]
[1755885682211,0.104,4801.2,4801.1,0.3019]
[1755885682508,0.04,4801.8,4801.1,0.6703]
[1755885682713,0.04,4801.8,4801.1,14.56165445]
[1755885682910,0.04,4801.8,4801.5,0.104]
[1755885683209,0.04,4801.8,4801.7,0.3019]
[1755885683527,0.04,4801.8,4801.7,0.7743]
[1755885683707,0.04,4801.8,4801.7,16.764267]
[1755885684009,0.04,4801.8,4801.7,5.5083]
[1755885684578,0.04,4801.8,4801.7,17.556477]
[1755885684783,0.04,4801.8,4801.7,12.273136]
[1755885685190,0.002,4803.3,4801.8,3.0]
[1755885685392,0.002,4803.3,4802.7,0.3019]
[1755885685720,0.002,4803.3,4802.7,10.70772162]
[1755885685898,0.002,4803.3,4802.7,4.4523]
[1755885686128,0.002,4803.3,4802.7,4.47312162]
[1755885686486,0.002,4803.3,4802.7,7.47312162]
[1755885686808,0.002,4803.3,4802.7,20.781491]
[1755885687140,0.002,4803.3,4802.7,3.7743]
[1755885687411,0.002,4803.3,4802.7,0.42672162]
[1755885687611,0.4395,4803.3,4802.7,0.104]
[1755885687813,0.66,4803.1,4802.1,0.02082422]
[1755885687988,0.01035488,4803.2,4802.1,0.02082422]
[1755885687989,0.104,4802.3,4802.1,0.02082422]
[1755885688193,0.104,4802.3,4802.2,0.3019]
[1755885689206,0.66,4803.2,4802.2,0.3019]
[1755885689407,0.104,4802.5,4802.0,3.677]
[1755885689608,0.68,4802.8,4802.0,3.677]
[1755885689794,0.104,4802.2,4802.0,3.677]
[1755885691011,0.104,4802.2,4802.1,0.32272422]
[1755885691312,0.104,4802.2,4802.0,3.677]
[1755885691689,0.104,4802.2,4802.1,0.32272422]
[1755885691890,0.104,4802.5,4802.1,0.6703]
[1755885692085,0.02,4802.8,4802.1,0.69112422]
[1755885692285,0.02,4802.8,4802.3,3.0]
[1755885692619,0.02,4802.8,4802.7,0.4059]
[1755885692914,0.02,4802.8,4802.7,7.0819]
[1755885694292,0.02,4802.8,4802.7,4.0819]
[1755885694495,0.02,4802.8,4802.7,7.4503]
[1755885694717,0.02,4802.8,4802.7,4.4503]
[1755885694885,0.02,4802.8,4802.7,4.0819]
[1755885695082,0.02,4802.8,4802.7,0.3019]
[1755885695282,0.02,4802.8,4802.7,3.676]
[1755885695518,0.02,4802.8,4802.7,3.9779]
[1755885695519,0.124,4802.8,4802.7,3.9779]
[1755885695686,0.02,4802.8,4802.7,3.9779]
[1755885696583,0.02,4802.8,4802.7,3.96148085]
[1755885696788,0.02,4802.8,4802.7,3.68040247]
[1755885696983,0.124,4802.8,4802.7,3.65958085]
[1755885697188,0.124,4802.8,4802.7,3.96148085]
[1755885697383,0.02,4802.8,4802.7,3.65958085]
[1755885697624,0.66,4802.7,4801.8,3.02]
[1755885697920,0.104,4802.3,4802.2,3.675]
[1755885698290,0.8448,4802.3,4802.2,3.675]
[1755885699387,0.104,4802.3,4802.2,3.675]
[1755885700404,0.66,4802.2,4801.8,0.02]
[1755885700650,0.3033,4801.9,4801.8,0.02]
[1755885700854,0.4073,4801.9,4801.8,0.02]
[1755885701159,0.8448,4801.9,4801.8,0.02]
[1755885701510,1.5048,4801.9,4801.8,0.02]
[1755885702135,0.66,4801.8,4800.8,0.02]
[1755885702334,0.4375,4801.9,4800.9,0.02082942]
[1755885702534,0.66,4801.8,4800.9,0.02082942]
[1755885702737,0.104,4801.2,4800.9,0.02082942]
[1755885702924,0.66,4802.1,4800.8,4.44019632]
[1755885703127,0.104,4801.5,4801.3,0.001]
[1755885703339,0.104,4801.8,4801.4,3.9769]
[1755885703638,0.104,4801.8,4801.5,0.02082682]
[1755885703807,0.01035488,4802.3,4801.3,0.02182769]
[1755885704010,0.66,4802.4,4801.3,0.001]
[1755885704214,0.02,4802.8,4801.3,0.39022769]
[1755885704459,0.02,4802.8,4801.3,0.74619632]
[1755885704615,0.66,4802.6,4801.3,0.001]
[1755885704805,0.66,4802.6,4801.6,0.74519632]
[1755885704806,0.66,4802.4,4801.6,0.74519632]
[1755885705012,0.66,4802.2,4801.6,3.675]
[1755885705309,0.68,4802.8,4801.7,0.76602227]
[1755885706045,0.02,4802.8,4801.8,9.67539632]
[1755885706343,0.02,4802.8,4802.7,0.3019]
[1755885706533,0.02,4802.8,4802.7,3.9779]
[1755885706730,0.02,4802.8,4802.7,3.676]
[1755885708342,0.66,4802.7,4802.2,0.74519632]
[1755885708528,0.66,4802.2,4801.9,0.74519632]
[1755885708731,0.66,4801.9,4801.7,0.74519632]
[1755885708929,0.66,4802.6,4801.6,0.74519632]
[1755885709261,0.02,4802.8,4801.5,0.74519632]
[1755885709262,0.3046,4801.7,4801.5,0.74519632]
[1755885709418,0.3046,4801.7,4801.4,0.74519632]
[1755885709623,0.66,4801.5,4801.3,0.74619632]
[1755885709860,1.3934,4801.4,4801.3,0.001]
[1755885713760,0.4086,4801.4,4801.3,0.001]
[1755885713961,0.104,4801.4,4801.3,0.001]
[1755885714460,0.8374,4801.4,4801.3,0.001]
[1755885714660,0.104,4801.4,4801.3,0.001]
[1755885717307,1.4974,4801.4,4801.3,0.001]
[1755885719802,1.0686,4801.4,4801.3,0.001]
[1755885720093,1.4974,4801.4,4801.3,0.001]
[1755885720891,0.66,4801.3,4800.8,0.021]
[1755885721050,0.66,4801.3,4800.3,0.001]
[1755885721051,0.66,4800.8,4800.3,0.001]
[1755885721254,0.66,4800.3,4798.3,0.74519632]
[1755885721455,1.74435488,4800.7,4797.9,0.82865132]
[1755885721456,0.4086,4799.9,4797.9,0.82865132]
[1755885721751,0.764,4798.9,4797.4,0.74519632]
[1755885722064,0.764,4798.9,4797.5,1.26259632]
[1755885722484,0.764,4798.9,4797.6,0.74519632]
[1755885722673,0.764,4798.9,4797.9,0.02084245]
[1755885722869,0.764,4798.9,4797.6,0.74519632]
[1755885723186,0.764,4798.9,4797.8,0.76519632]
[1755885723386,0.104,4798.9,4798.8,0.3133]
[1755885723587,0.104,4798.9,4798.8,0.02]
[1755885723995,1.4974,4798.9,4798.8,0.02]
[1755885724385,0.764,4798.9,4798.8,0.02]
[1755885725378,0.104,4798.9,4798.8,0.3133]
[1755885725806,0.4086,4798.9,4798.8,0.02]
[1755885726007,1.4974,4798.9,4798.8,0.02]
[1755885726305,0.764,4798.9,4798.8,0.02]
[1755885726667,1.4974,4798.9,4798.8,0.02]
[1755885728576,0.764,4798.9,4798.8,0.02]
[1755885728809,1.4974,4798.9,4798.8,0.02]
[1755885729106,1.4974,4798.9,4797.8,0.02]
[1755885729107,0.66,4798.8,4797.8,0.02]
[1755885729341,0.9646,4797.9,4797.8,0.02]
[1755885729636,0.9646,4797.9,4797.0,0.003]
[1755885729637,0.66,4797.8,4797.0,0.003]
[1755885729776,1.0686,4797.1,4797.0,0.003]
[1755885730174,1.4974,4797.1,4797.0,0.003]
[1755885730773,1.0686,4797.1,4797.0,0.003]
[1755885731092,0.104,4797.1,4797.0,0.2963]
[1755885731421,0.104,4797.2,4797.0,0.7299]
[1755885731710,0.104,4797.2,4797.0,0.2963]
[1755885732186,0.104,4797.2,4797.0,0.003]
[1755885732389,0.104,4797.1,4797.0,0.003]
[1755885732908,0.104,4797.1,4797.0,0.2963]
[1755885733607,0.4288,4798.7,4797.0,0.75074636]
[1755885733801,0.104,4797.5,4797.0,0.31714636]
[1755885733997,0.104,4797.5,4797.0,0.2963]
[1755885734915,0.104,4797.5,4797.1,0.4336]
[1755885735111,0.104,4797.5,4797.4,0.2933]
[1755885735608,0.104,4797.5,4797.0,0.003]
[1755885735609,0.66,4797.4,4797.0,0.003]
[1755885735815,1.0686,4797.1,4797.0,0.003]
[1755885736011,1.0686,4797.1,4797.0,0.004]
[1755885736223,0.764,4797.1,4797.0,0.004]
[1755885736753,0.4288,4798.3,4797.0,0.31814636]
[1755885736921,0.104,4797.3,4797.0,0.7309]
[1755885737216,0.104,4797.3,4797.0,0.2973]
[1755885737388,0.104,4797.3,4797.1,0.4336]
[1755885737619,0.104,4797.3,4797.2,0.31414549]
[1755885737810,0.104,4797.3,4797.2,0.7269]
[1755885738010,0.02,4798.8,4797.2,0.7269]
[1755885738011,0.104,4797.9,4797.2,0.8309]
[1755885738270,0.104,4797.9,4797.3,0.02084505]
[1755885738445,0.104,4797.9,4797.8,0.2903]
[1755885739442,0.104,4797.9,4797.2,0.5376]
[1755885739749,0.66,4797.2,4797.0,0.004]
[1755885739950,0.97945488,4797.1,4797.0,0.004]
[1755885740161,1.41665488,4797.1,4797.0,0.004]
[1755885740949,1.4063,4797.1,4797.0,0.004]
[1755885743715,0.9691,4797.1,4797.0,0.004]
[1755885743918,1.735,4798.4,4797.0,0.7474]